Workbook

Sheet EverythingTests
A6: DATA SECTION | B6: INTEGRAL | C6: DOUBLE | D6: BLANK | E6: STRING | F6: REF | G6: AREA (rows) | K6: AREA (cols) | P6: AREA (AREA) | T6: FINANCE DATA | AA6: ERRORS | AL6: IRR/NPV
B7: 0 | C7: 0 | E7: ="" ->  | F7: =B7 -> 0 | G7: 1 | H7: 2 | I7: 3 | J7: 4 | K7: 1 | L7: 1.001 | M7: alphanum | N7: blanksIncl | O7: E8 | P7: 1 | Q7: 2 | R7: 3 | S7: 4 | T7: r | U7: n | V7: y | W7: p | X7: t | Y7: f | AC7: 0 | AD7: 1 | AE7: 2 | AF7: 3 | AG7: 4 | AH7: 5 | AI7: 6 | AJ7: 7 | AK7: 8 | AL7: -70,000
B8: 1 | C8: 1e-05 | E8: nospaces | F8: =B8 -> 1 | G8: 1.001 | H8: 2.999 | I8: 3.5 | J8: 4.5 | K8: 2 | L8: 2.9999 | M8: 3 | O8: 545 | P8: 9999.9999 | Q8: 23.3333 | R8: =2/3 -> 16:00:00 | S8: 1000.001 | T8: 1 | U8: 10 | V8: 100 | W8: 10000 | X8: 0 | AC8: 8 | AD8: 9 | AE8: 10 | AF8: 11 | AG8: 12 | AH8: 13 | AI8: 14 | AJ8: 15 | AK8: 16 | AL8: 12,000
B9: 2 | C9: 1.1 | E9: sp ace s | F9: =B11 -> 9999999999 | G9: 2.3456 | H9: 3.4567 | I9: 5.6789 | J9: 6.789 | K9: 3 | L9: 3.5 | M9: ric | N9: 345 | O9: 454 | P9: refsIncl | Q9: =H7 -> 2 | R9: =I8 -> 3.5 | S9: =E7 ->  | T9: 1 | U9: 10 | V9: 100 | W9: 10000 | X9: 1 | AC9: 16 | AD9: 17 | AE9: 18 | AF9: 19 | AG9: 20 | AH9: 21 | AI9: 22 | AJ9: 23 | AK9: 24 | AL9: 15,000
B10: 534 | C10: 1.00001 | E10: endsWithSpace | F10: =C8 -> 1e-05 | G10: alphanum | H10: 3 | I10: ric | J10: row | K10: 4 | L10: 4.5 | M10: col | N10: 1e-05 | O10: 0 | P10: blanksIncl | S10: endarea | T10: 2 | U10: 12 | V10: 120 | W10: 12000 | X10: 0 | AC10: 24 | AD10: 25 | AE10: 26 | AF10: 27 | AG10: 28 | AH10: 29 | AI10: 30 | AJ10: 31 | AK10: 32 | AL10: 18,000
B11: 9999999999 | C11: 2.99999 | E11: beginsWithSpace | F11: =D7 -> 0 | G11: blanksIncl | I11: 345 | J11: 1e-05 | T11: 2 | U11: 12 | V11: 120 | W11: 12000 | X11: 1 | AC11: 32 | AD11: 33 | AE11: 34 | AF11: 35 | AG11: 36 | AH11: 37 | AI11: 38 | AJ11: 39 | AK11: 40 | AL11: 12,000
B12: -9999999999 | C12: 1000000 | E12: non-numeric | F12: =E9 -> sp ace s | G12: E8 | H12: 545 | I12: 454 | J12: 0 | T12: 0.6666666667 | U12: 23 | V12: 133.33 | W12: 34307 | X12: 0 | AC12: 40 | AD12: 41 | AE12: 42 | AF12: 43 | AG12: 44 | AH12: 45 | AI12: 46 | AJ12: 47 | AK12: 48 | AL12: 26,000
B13: -534 | C13: -1000000 | E13: ="0" -> 0 | F13: =E17 -> 2.99999 | T13: 0.6666666667 | U13: 23 | V13: 133.33 | W13: 34307 | X13: 1
B14: -2 | C14: -2.99999 | E14: ="0.000001" -> 0.000001 | F14: =E19 -> alph4Num3ric | T14: 0 | U14: 1 | V14: 100 | W14: 2300 | X14: 0
B15: -1 | C15: -1.00001 | E15: ="1" -> 1 | T15: 0 | U15: 1 | V15: 100 | W15: 2300 | X15: 1
B16: TRUE | C16: -1.1 | E16: ="1.1" -> 1.1 | T16: 0 | U16: 12 | V16: 120 | W16: 12000 | X16: 0
B17: FALSE | C17: -1e-05 | E17: ="2.99999" -> 2.99999 | T17: 0 | U17: 12 | V17: 120 | W17: 12000 | X17: 1
B18: ="TRUE" -> TRUE | E18: ="99999999" -> 99999999 | T18: 2.3333 | U18: 4 | V18: 334.5 | W18: 14323.45 | X18: 0
B19: ="FALSE" -> FALSE | E19: alph4Num3ric | T19: 2.3333 | U19: 4 | V19: 334.5 | W19: 14323.45 | X19: 1
C20: 2000-12-25 | F20: =D7 -> 0
B23: Add | C23: FORMULA | D23: =0+0 -> 0 | E23: =999999+1.001 -> 1000000.001 | F23: =-8888+8887.9 -> -0.1 | G23: =B9+C9+F10 -> 3.10001 | H23: =B7+C7+D7+F7 -> 0 | I23: =B7+C7+D7+E7 ->  | J23: =D7+D8 -> 0 | K23: =C7+G7:J7 -> 
C24: EXPECTED VALUE | D24: 0 | E24: 1000000.001 | F24: -0.1 | G24: 3.10001 | H24: 0 | J24: 0
B27: ConcatEval | C27: FORMULA | D27: =0&1 -> 01 | E27: =2&"hello world" -> 2hello world | F27: ="its "&(2<3)&" blue" -> its TRUE blue | G27: =F9&B7&D7&E19 -> 99999999990alph4Num3ric | H27: =K7:L10&D7&F7 ->  | I27: =P7:S10&"test" -> 
C28: EXPECTED VALUE | D28: 01 | E28: 2hello world | F28: its TRUE blue | G28: 99999999990alph4Num3ric
B31: DivideEval | C31: FORMULA | D31: =0/1 -> 0 | E31: =B11/B12 -> -1 | F31: =C13/C17 -> 99999999999 | G31: =E10/D7 ->  | H31: =E9/C8 ->  | I31: =C8/D7 ->  | J31: =F7/E17 -> 0 | K31: =F7/E9 ->  | L31: =E9/E15 ->  | M31: =E17/E15 -> 2.99999 | N31: =E15/C9 -> 0.9090909091 | O31: =G7:J7/B8 ->  | P31: =K7:K10/B8 ->  | Q31: =P7:S8/B8 -> 
C32: EXPECTED VALUE | D32: 0 | E32: -1 | F32: 99999999999 | J32: 0 | M32: 2.99999 | N32: 0.9090909091
B35: EqualEval | C35: FORMULA | D35: =B8=B8 -> TRUE | E35: =1000000=999999.99 -> FALSE | F35: =1.11111111111111=1.1111111111111 -> FALSE | G35: =E8=E8 -> TRUE | H35: =E8=E9 -> FALSE | I35: ="1.1"=C9 -> FALSE | J35: =1.1=C16 -> FALSE | K35: =-200=200 -> FALSE | L35: =""=D7 -> TRUE | M35: =0=D7 -> TRUE | N35: =FALSE=D7 -> TRUE | O35: =""=0 -> FALSE | P35: =FALSE=0 -> FALSE
C36: EXPECTED VALUE | D36: TRUE | E36: FALSE | F36: FALSE | G36: TRUE | H36: FALSE | I36: FALSE | J36: FALSE | K36: FALSE | L36: TRUE | M36: TRUE | N36: TRUE | O36: FALSE | P36: FALSE
B39: GreaterEqualEval | C39: FORMULA | D39: =2>=2 -> TRUE | E39: =B11>=C12 -> TRUE | F39: =C10>=1.00001 -> TRUE | G39: =D7>=D8 -> TRUE | H39: =E8>=E10 -> TRUE | I39: =E10>=E8 -> FALSE | J39: =F9>=F9 -> TRUE | K39: =G7:J7>=G7:J7 ->  | L39: =K7:K10>=K7:K10 -> 
C40: EXPECTED VALUE | D40: TRUE | E40: TRUE | F40: TRUE | G40: TRUE | H40: TRUE | I40: FALSE | J40: TRUE
B43: GreaterThanEval | C43: FORMULA | D43: =B7>B11 -> FALSE | E43: =B11>B7 -> TRUE | F43: =B7>B12 -> TRUE | G43: =B13>C15 -> FALSE | H43: =D7>C8 -> FALSE | I43: =D7>C17 -> TRUE | J43: =F14>F13 -> TRUE | K43: =E15>E9 -> FALSE | L43: =G7:J7>F8 ->  | M43: =K7:K10>F11 ->  | N43: =FALSE>"TRUE" -> TRUE | O43: =TRUE>"TRUER" -> TRUE
C44: EXPECTED VALUE | D44: FALSE | E44: TRUE | F44: TRUE | G44: FALSE | H44: FALSE | I44: TRUE | J44: TRUE | K44: FALSE | N44: TRUE | O44: TRUE
B47: IntersectionEval | C47: FORMULA | D47: Not supported by XSSF
C48: EXPECTED VALUE | D48: Not supported by XSSF
B51: LessEqualEval | C51: FORMULA | D51: =B7<=C7 -> TRUE | E51: =B8<=C9 -> TRUE | F51: =C8<=C16 -> FALSE | G51: =E8<=E9 -> TRUE | H51: =C9<=E11 -> TRUE | I51: =F10<=F11 -> FALSE | J51: =F12<=E12 -> FALSE | K51: =E17<=C11 -> FALSE | L51: =G7:J7<=F8 ->  | M51: =L7:L10<=B7 -> 
C52: EXPECTED VALUE | D52: TRUE | E52: TRUE | F52: FALSE | G52: TRUE | H52: TRUE | I52: FALSE | J52: FALSE | K52: FALSE
B55: LessThanEval | C55: FORMULA | D55: =B7<B8 -> TRUE | E55: =B8<B7 -> FALSE | F55: =C10<C9 -> TRUE | G55: =E8<E9 -> TRUE | H55: =C9<E16 -> TRUE
C56: EXPECTED VALUE | D56: TRUE | E56: FALSE | F56: TRUE | G56: TRUE | H56: TRUE
B59: MultiplyEval | C59: FORMULA | D59: =1*0 -> 0 | E59: ="test"*0 ->  | F59: =1.99999*0.033 -> 0.06599967 | G59: =B10*C11 -> 1601.99466 | H59: =D7*C8 -> 0 | I59: =E7*C7 ->  | J59: =A7:J7*B15 -> -4 | K59: =K7:K10*B10 ->  | L59: =J1:J59*B8 -> -4 | M59: =""*"1" ->  | N59: ="1"*1 -> 1 | O59: =TRUE*34 -> 34 | P59: =FALSE*2 -> 0 | Q59: =B18*B16 -> 
C60: EXPECTED VALUE | D60: 0 | F60: 0.06599967 | G60: 1601.99466 | H60: 0 | J60: -4 | L60: -4 | N60: 1 | O60: 34 | P60: 0
B63: NotEqualEval | C63: FORMULA | D63: =B7<>B7 -> FALSE | E63: ="TRUE"<>B16 -> TRUE | F63: ="TRUE"<>B18 -> FALSE | G63: =FALSE<>B19 -> TRUE | H63: =C8<>0.00001001 -> TRUE | I63: =E9<>"spaces" -> TRUE | J63: =E11<>"beginsWithSpace" -> TRUE | K63: =1<>E15 -> TRUE | L63: =E17<>C17 -> TRUE | M63: =F14<>F14 -> FALSE | N63: ="blanksIncl"<>G11 -> FALSE | O63: =G7:J7<>G7:J7 ->  | P63: =P7:S8<>P7:S8 ->  | Q63: =P7:S7<>Q7:R7 -> FALSE | R63: =P7:P10<>S7:S10 ->  | S63: =""<>D7 -> FALSE | T63: =0<>D7 -> FALSE
C64: EXPECTED VALUE | D64: FALSE | E64: TRUE | F64: FALSE | G64: TRUE | H64: TRUE | I64: TRUE | J64: TRUE | K64: TRUE | L64: TRUE | M64: FALSE | N64: FALSE | Q64: FALSE | S64: FALSE | T64: FALSE
B67: PercentEval | C67: FORMULA | D67: =50% -> 0.5 | E67: ="250"% -> 2.5 | F67: =B16% -> 0.01 | G67: =F13% -> 0.0299999 | H67: =1000%% -> 0.1
C68: EXPECTED VALUE | D68: 0.5 | E68: 2.5 | F68: 0.01 | G68: 0.0299999 | H68: 0.1
B71: PowerEval | C71: FORMULA | D71: =2^5 -> 32 | E71: =1^99999 -> 1 | F71: =B13^0 -> 1 | G71: =C15^C9 ->  | H71: =B8^C9 -> 1 | I71: =C7^C9 -> 0 | J71: =B9^C9 -> 2.143546925 | K71: =C15^B9 -> 1.00002 | L71: =B10^B14 -> 3.50685239e-06 | M71: =G10^C7 ->  | N71: =E7^C7 ->  | O71: =H7:J7^C7 ->  | P71: =N7:Q7^Q9 -> 1 | Q71: =P7:Q9^R7 ->  | R71: =P70:P71^R9 -> 1
C72: EXPECTED VALUE | D72: 32 | E72: 1 | F72: 1 | H72: 1 | I72: 0 | J72: 2.143546925 | K72: 1.00002 | L72: 3.50685239e-06 | P72: 1 | R72: 1
B75: RangeEval | C75: FORMULA | D75: Not supported by XSSF
C76: EXPECTED VALUE | D76: Not supported by XSSF
B79: SubtractEval | C79: FORMULA | D79: =B10-C9 -> 532.9 | E79: =9999-9999 -> 0 | F79: =C9-C16 -> 2.2 | G79: =D8-D7 -> 0 | H79: =D7-C9 -> -1.1 | I79: =E7-C7 ->  | J79: =B16-B17 -> 1 | K79: =B19-B18 ->  | L79: =B17-B16 -> -1 | M79: =M7:M10-N7:N10 ->  | N79: =L10:O10-N9 -> -344.99999 | O79: =N10:P10-O8:O11 ->  | P79: =I7-M9 -> 
C80: EXPECTED VALUE | D80: 532.9 | E80: 0 | F80: 2.2 | G80: 0 | H80: -1.1 | J80: 1 | L80: -1 | N80: -344.99999
B83: UnaryMinusEval | C83: FORMULA | D83: =-B9 -> -2 | E83: =-B12 -> 9999999999 | F83: =-B16 -> -1 | G83: =-F10:H10 ->  | H83: =-G11:I11 -> 0 | I83: =-H10:J10 ->  | J83: =-E7 ->  | K83: =-F10 -> -1e-05 | L83: =-K7:L8 ->  | M83: =-M7:M10 ->  | N83: =-K10 -> -4 | O83: =-B18 -> 
C84: EXPECTED VALUE | D84: -2 | E84: 9999999999 | F84: -1 | H84: 0 | K84: -1e-05 | N84: -4
B87: UnaryPlusEval | C87: FORMULA | D87: =2 -> 2 | E87: =+C14 -> -2.99999 | F87: =+D7 -> 0 | G87: =+F9:H9 -> 2.3456 | H87: =+G85:G87 -> 2.3456 | I87: =+H12:J12 -> 454 | J87: =+I7:J8 ->  | K87: =+J11:L11 -> 0 | L87: =+E7 ->  | M87: =+L10:N10 -> col | N87: =-"hello" -> 
C88: EXPECTED VALUE | D88: 2 | E88: -2.99999 | F88: 0 | G88: 2.3456 | H88: 2.3456 | I88: 454 | K88: 0 | M88: col
B91: <END-OF-FUNCTIONS>
B94: Excel functions
B96: Abs | C96: FORMULA | D96: =ABS(B7) -> 0 | E96: =ABS(B12) -> 9999999999 | F96: =ABS(C14) -> 2.99999 | G96: =ABS(D7) -> 0 | H96: =ABS(E7) ->  | I96: =ABS("1") -> 1 | J96: =ABS(F10) -> 1e-05 | K96: =ABS(F13) -> 2.99999 | L96: =ABS(G7:G12) ->  | M96: =ABS(K7:N7) ->  | N96: =ABS(K9:N9) -> 345 | O96: =ABS(N88:N96) -> 345 | P96: =ABS(B18) ->  | Q96: =ABS(B16) -> 1 | R96: =ABS(B17) -> 0
C97: EXPECTED VALUE | D97: 0 | E97: 9999999999 | F97: 2.99999 | G97: 0 | I97: 1 | J97: 1e-05 | K97: 2.99999 | N97: 345 | O97: 345 | Q97: 1 | R97: 0
B100: Absref | C100: FORMULA
C101: EXPECTED VALUE
B104: Acos | C104: FORMULA | D104: =ACOS(0) -> 1.570796327 | E104: =ACOS(B9) ->  | F104: =ACOS(B7) -> 1.570796327 | G104: =ACOS(B16) -> 0 | H104: =ACOS(B17) -> 1.570796327 | I104: =ACOS(C17) -> 1.570806327 | J104: =ACOS(D7) -> 1.570796327 | K104: =ACOS(E7) ->  | L104: =ACOS(F8) -> 0 | M104: =ACOS(G9) ->  | N104: =ACOS(K8:N8) -> 1.570796327 | O104: =ACOS(L102:L105) -> 1.570796327 | P104: =ACOS(O7:P8) ->  | Q104: =ACOS("0.5") -> 1.047197551
C105: EXPECTED VALUE | D105: 1.570796327 | F105: 1.570796327 | G105: 0 | H105: 1.570796327 | I105: 1.570806327 | J105: 1.570796327 | L105: 0 | N105: 1.570796327 | O105: 1.570796327 | Q105: 1.047197551
B108: Acosh | C108: FORMULA | D108: =ACOSH(B9) -> 1.316957897 | E108: =ACOSH(B12) ->  | F108: =ACOSH(B13) ->  | G108: =ACOSH(B16) -> 0 | H108: =ACOSH(B18) ->  | I108: =ACOSH(D7) ->  | J108: =ACOSH(C7) ->  | K108: =ACOSH(C14) ->  | L108: =ACOSH(E14) ->  | M108: =ACOSH(K8:N8) -> 1.762747174 | N108: =ACOSH(M106:M109) -> 1.167638751 | O108: =ACOSH(N9:O10) -> 
C109: EXPECTED VALUE | D109: 1.316957897 | G109: 0 | M109: 1.762747174 | N109: 1.167638751
B112: Activecell | C112: FORMULA
C113: EXPECTED VALUE
B116: Addbar | C116: FORMULA | D116: WILL_NEVER_IMPLEMENT
C117: EXPECTED VALUE | D117: WILL_NEVER_IMPLEMENT
B120: Addcommand | C120: FORMULA | D120: WILL_NEVER_IMPLEMENT
C121: EXPECTED VALUE | D121: WILL_NEVER_IMPLEMENT
B124: Addmenu | C124: FORMULA | D124: WILL_NEVER_IMPLEMENT
C125: EXPECTED VALUE | D125: WILL_NEVER_IMPLEMENT
B128: Address | C128: FORMULA | D128: =ADDRESS(2,3) -> $C$2 | E128: =ADDRESS(2,3,2) -> C$2 | F128: =ADDRESS(2,3,3,TRUE,"[Book1]Sheet1") -> [Book1]Sheet1!$C2
C129: EXPECTED VALUE | D129: $C$2 | E129: C$2 | F129: '[Book1]Sheet1'!$C2
B132: Addtoolbar | C132: FORMULA | D132: WILL_NEVER_IMPLEMENT
C133: EXPECTED VALUE | D133: WILL_NEVER_IMPLEMENT
B136: And | C136: FORMULA | D136: =AND(B7:B9,C9,D7,E7) -> FALSE | E136: =AND(C9,B15) -> TRUE | F136: =AND(E7) ->  | G136: =AND(B7:E10) -> FALSE | H136: =AND(F12:I12) -> TRUE | I136: =AND(E14,E17,"1") ->  | J136: =AND("1",1) ->  | K136: =AND(E15,G13) ->  | L136: =AND(E15:E17,C13:C15,B9:B10) -> TRUE | M136: =AND(B16:B17) -> FALSE | N136: =AND(B15:B16) -> TRUE | O136: =AND(B17:B18) -> FALSE | P136: =AND(B18:B19) -> 
C137: EXPECTED VALUE | D137: FALSE | E137: TRUE | G137: FALSE | H137: TRUE | L137: TRUE | M137: FALSE | N137: TRUE | O137: FALSE
B140: Apptitle | C140: FORMULA | D140: WILL_NEVER_IMPLEMENT
C141: EXPECTED VALUE | D141: WILL_NEVER_IMPLEMENT
B144: Areas | C144: FORMULA
C145: EXPECTED VALUE
B148: Argument | C148: FORMULA
C149: EXPECTED VALUE
B152: Asc | C152: FORMULA
C153: EXPECTED VALUE
B156: Asin | C156: FORMULA | D156: =ASIN(B7) -> 0 | E156: =ASIN(C8) -> 1e-05 | F156: =ASIN(B10) ->  | G156: =ASIN(B13) ->  | H156: =ASIN(B17) -> 0 | I156: =ASIN(B16) -> 1.570796327 | J156: =ASIN(D7) -> 0 | K156: =ASIN(E7) ->  | L156: =ASIN(F8) -> 1.570796327 | M156: =ASIN(I11:M11) -> 0 | N156: =ASIN(H12:J12) ->  | O156: =ASIN(M154:M157) -> 0 | P156: =ASIN("1") -> 1.570796327
C157: EXPECTED VALUE | D157: 0 | E157: 1e-05 | H157: 0 | I157: 1.570796327 | J157: 0 | L157: 1.570796327 | M157: 0 | O157: 0 | P157: 1.570796327
B160: Asinh | C160: FORMULA | D160: =ASINH(B7) -> 0 | E160: =ASINH(B8) -> 0.881373587 | F160: =ASINH(B11) -> 23.71899811 | G160: =ASINH(B13) -> -6.973543896 | H160: =ASINH(B16) -> 0.881373587 | I160: =ASINH(D7) -> 0 | J160: =ASINH(E7) ->  | K160: =ASINH("") ->  | L160: =ASINH("1") -> 0.881373587 | M160: =ASINH(J10:M10) ->  | N160: =ASINH(L11:O11) -> 0 | O160: =ASINH(L158:L161) -> 0.7949577688 | P160: =ASINH(O9:P11) -> 
C161: EXPECTED VALUE | D161: 0 | E161: 0.881373587 | F161: 23.71899811 | G161: -6.973543896 | H161: 0.881373587 | I161: 0 | L161: 0.881373587 | N161: 0 | O161: 0.7949577688
B164: Atan | C164: FORMULA | D164: =ATAN(B7) -> 0 | E164: =ATAN(B10) -> 1.56892367 | F164: =ATAN(B16) -> 0.7853981634 | G164: =ATAN(D7) -> 0 | H164: =ATAN(E7) ->  | I164: =ATAN(E15) -> 0.7853981634 | J164: =ATAN("1") -> 0.7853981634 | K164: =ATAN(F12) ->  | L164: =ATAN(F10) -> 1e-05 | M164: =ATAN(K10:N10) ->  | N164: =ATAN(L11:N11) -> 0 | O164: =ATAN(N162:N165) -> 0 | P164: =ATAN(O7:P8) -> 
C165: EXPECTED VALUE | D165: 0 | E165: 1.56892367 | F165: 0.7853981634 | G165: 0 | I165: 0.7853981634 | J165: 0.7853981634 | L165: 1e-05 | N165: 0 | O165: 0
B168: Atan2 | C168: FORMULA | D168: =ATAN2(B7,B7) ->  | E168: =ATAN2(B7,B8) -> 1.570796327 | F168: =ATAN2(B12,C9) -> 3.141592653 | G168: =ATAN2(B15,B16) -> 2.35619449 | H168: =ATAN2(B18,B16) ->  | I168: =ATAN2(G12:I12,J9) -> 0.01495263002 | J168: =ATAN2(I167:I169,I11:K11) -> 0.0006687785692 | K168: =ATAN2(K7:K8,J9:K9) ->  | L168: =ATAN2(K9:L10,2) ->  | M168: =ATAN2("1",TRUE) -> 0.7853981634 | N168: =ATAN2(1,0) -> 0 | O168: =ATAN2(#N/A,#NAME?) -> 
C169: EXPECTED VALUE | E169: 1.570796327 | F169: 3.141592653 | G169: 2.35619449 | I169: 0.01495263002 | J169: 0.0006687785692 | M169: 0.7853981634 | N169: 0
B172: Atanh | C172: FORMULA | D172: =ATANH(B7) -> 0 | E172: =ATANH(C9) ->  | F172: =ATANH(B13) ->  | G172: =ATANH(B16) ->  | H172: =ATANH(B17) -> 0 | I172: =ATANH(E7) ->  | J172: =ATANH(F12) ->  | K172: =ATANH(K7:M7) ->  | L172: =ATANH(K11:M11) -> 0 | M172: =ATANH(L171:L173) -> 0 | N172: =ATANH(M9:O10) -> 
C173: EXPECTED VALUE | D173: 0 | H173: 0 | L173: 0 | M173: 0
B176: Avedev | C176: FORMULA | D176: =AVEDEV(B7:C7,C11,B16:B17) -> 1.333328889 | E176: =AVEDEV(C7:D9) -> 0.4888866667 | F176: =AVEDEV(D7:E9) ->  | G176: =AVEDEV(E13:E17) ->  | H176: =AVEDEV(C7:E11) -> 0.8239944 | I176: =AVEDEV(C7:C11) -> 0.8239944 | J176: =AVEDEV(F8:H10) -> 2187499999 | K176: =AVEDEV(H7:J10) -> 1.079692 | L176: =AVEDEV(TRUE, FALSE) -> 0.5
C177: EXPECTED VALUE | D177: 1.333328889 | E177: 0.4888866667 | H177: 0.8239944 | I177: 0.8239944 | J177: 2187499999 | K177: 1.079692 | L177: 0.5
B180: Average | C180: FORMULA | D180: =AVERAGE(B7:C15,B16:C17,D8:D16) -> -4.089355473e-09 | E180: =AVERAGE(D7:D15) ->  | F180: =AVERAGE(D9:E16) ->  | G180: =AVERAGE("1",B8:B9) -> 1.333333333 | H180: =AVERAGE(F11,G8) -> 0.5005 | I180: =AVERAGE(F8:H10) -> 1250000002 | J180: =AVERAGE(TRUE, FALSE) -> 0.5
C181: EXPECTED VALUE | D181: -4.089355473e-09 | G181: 1.333333333 | H181: 0.5005 | I181: 1250000002 | J181: 0.5
B184: Averagea | C184: FORMULA
C185: EXPECTED VALUE
B188: Betadist | C188: FORMULA
C189: EXPECTED VALUE
B192: Betainv | C192: FORMULA
C193: EXPECTED VALUE
B196: Binomdist | C196: FORMULA
C197: EXPECTED VALUE
B200: Call | C200: FORMULA | D200: WILL_NEVER_IMPLEMENT
C201: EXPECTED VALUE | D201: WILL_NEVER_IMPLEMENT
B204: Caller | C204: FORMULA | D204: WILL_NEVER_IMPLEMENT
C205: EXPECTED VALUE | D205: WILL_NEVER_IMPLEMENT
B208: Cancelkey | C208: FORMULA
C209: EXPECTED VALUE
B212: Ceiling | C212: FORMULA | D212: =CEILING(B10,B9) -> 534 | E212: =CEILING(C11,C9) -> 3.3 | F212: =CEILING(D9,D10) -> 0 | G212: =CEILING(C12,D11) -> 0 | H212: =CEILING(E17,E15) -> 3 | I212: =CEILING(F13,F10) -> 2.99999 | J212: =CEILING(I9:J9,H210:H213) -> 9 | K212: =CEILING(J8:K9,1) ->  | L212: =CEILING(G10,G7) ->  | M212: =CEILING(0,0) -> 0
C213: EXPECTED VALUE | D213: 534 | E213: 3.3 | F213: 0 | G213: 0 | H213: 3 | I213: 2.99999 | J213: 9 | M213: 0
B216: Cell | C216: FORMULA
C217: EXPECTED VALUE
B220: Char | C220: FORMULA | D220: =CHAR(65) -> A | E220: =CHAR(33) -> ! | F220: =CHAR(-1) -> 
C221: EXPECTED VALUE | D221: A | E221: !
B224: Checkcommand | C224: FORMULA | D224: WILL_NEVER_IMPLEMENT
C225: EXPECTED VALUE | D225: WILL_NEVER_IMPLEMENT
B228: Chidist | C228: FORMULA
C229: EXPECTED VALUE
B232: Chiinv | C232: FORMULA
C233: EXPECTED VALUE
B236: Chitest | C236: FORMULA
C237: EXPECTED VALUE
B240: Choose | C240: FORMULA | D240: =CHOOSE(1,2,3) -> 2 | E240: =CHOOSE(#REF!, 1) ->  | F240: =CHOOSE(2,#N/A,#NULL!) ->  | G240: =CHOOSE(2,#REF!,3) -> 3 | H240: =CHOOSE(1.9,5,6) -> 5
C241: EXPECTED VALUE | D241: 2 | G241: 3 | H241: 5
B244: Clean | C244: FORMULA | D244: =CLEAN(CHAR(7)&"text"&CHAR(7)) -> text
C245: EXPECTED VALUE | D245: text
B248: Code | C248: FORMULA
C249: EXPECTED VALUE
B252: Column | C252: FORMULA | D252: =COLUMN(C7) -> 3 | E252: =COLUMN(1:2) -> 1 | F252: =COLUMN(B7:B11) -> 2 | G252: =COLUMN(B11:D11) -> 2 | H252: =COLUMN(E15:G19) -> 5 | I252: =COLUMN(G17:H21) -> 7
C253: EXPECTED VALUE | D253: 3 | E253: 1 | F253: 2 | G253: 2 | H253: 5 | I253: 7
B256: Columns | C256: FORMULA | D256: =COLUMNS(C1:E4) -> 3
C257: EXPECTED VALUE | D257: 3
B260: Combin | C260: FORMULA | D260: =COMBIN(B9,B8) -> 2 | E260: =COMBIN(19,7) -> 50388 | F260: =COMBIN(E13:G13,2) -> 1 | G260: =COMBIN(E13:F13,1) ->  | H260: =COMBIN(E15,E17) ->  | I260: =COMBIN(C15,C16) ->  | J260: =COMBIN(-23,12) ->  | K260: =COMBIN(99,1) -> 99 | L260: =COMBIN(23,D259:D261) -> 253
C261: EXPECTED VALUE | D261: 2 | E261: 50388 | F261: 1 | K261: 99 | L261: 253
B264: Concatenate | C264: FORMULA | D264: =CONCATENATE(B7,B15) -> 0-1 | E264: =CONCATENATE(B16,B18) -> TRUETRUE | F264: =CONCATENATE(C9,D14,B14,B17) -> 1.1-2FALSE | G264: =CONCATENATE(E9,F12) -> sp ace ssp ace s | H264: =CONCATENATE(F13,E16) -> 2.999991.1 | I264: =CONCATENATE(G10:J10,F263:F265) -> ric1.1-2FALSE | J264: =CONCATENATE(F13:G15,E16) ->  | K264: =CONCATENATE(K8:L9,K10) -> 
C265: EXPECTED VALUE | D265: 0-1 | E265: TRUETRUE | F265: 1.1-2FALSE | G265: sp ace ssp ace s | H265: 2.999991.1 | I265: ric1.1-2FALSE
B268: Confidence | C268: FORMULA
C269: EXPECTED VALUE
B272: Correl | C272: FORMULA
C273: EXPECTED VALUE
B276: Cos | C276: FORMULA | D276: =COS(D7) -> 1 | E276: =COS(E7) ->  | F276: =COS(E15) -> 0.5403023059 | G276: =COS("1") -> 0.5403023059 | H276: =COS(B16) -> 0.5403023059 | I276: =COS(B17) -> 1 | J276: =COS(B18) ->  | K276: =COS(H12:L12) -> 1 | L276: =COS(K274:K277) -> 0.5403023059 | M276: =COS(F11) -> 1 | N276: =COS(I8:K8) ->  | O276: =COS(K8:K10) -> 
C277: EXPECTED VALUE | D277: 1 | F277: 0.5403023059 | G277: 0.5403023059 | H277: 0.5403023059 | I277: 1 | K277: 1 | L277: 0.5403023059 | M277: 1
B280: Cosh | C280: FORMULA | D280: =COSH(B7) -> 1 | E280: =COSH(C8) -> 1 | F280: =COSH(B13) -> 4.094711806e+231 | G280: =COSH(B16) -> 1.543080635 | H280: =COSH(B18) ->  | I280: =COSH(D8) -> 1 | J280: =COSH(E7) ->  | K280: =COSH(E15) -> 1.543080635 | L280: =COSH(I10:L10) -> 45.01412015 | M280: =COSH(K279:K281) -> 2.446352007 | N280: =COSH(M8:N9) -> 
C281: EXPECTED VALUE | D281: 1 | E281: 1 | F281: 4.094711806e+231 | G281: 1.543080635 | I281: 1 | K281: 1.543080635 | L281: 45.01412015 | M281: 2.446352007
B284: Count | C284: FORMULA | D284: =COUNT(B8:E9) -> 4 | E284: =COUNT(E10:F13) -> 2 | F284: =COUNT(2, "A", "",#REF!, #DIV/0!) -> 1
C285: EXPECTED VALUE | D285: 4 | E285: 2 | F285: 1
B288: Counta | C288: FORMULA | D288: =COUNTA(C9:D11) -> 3 | E288: =COUNTA(E10:F13) -> 8 | F288: =COUNTA(2, "A", "",#REF!, #DIV/0!) -> 5
C289: EXPECTED VALUE | D289: 3 | E289: 8 | F289: 5
B292: Countblank | C292: FORMULA | D292: =COUNTBLANK(B8:E9) -> 2 | E292: =COUNTBLANK(G10:G18) -> 6
C293: EXPECTED VALUE | D293: 2 | E293: 6
B296: Countif | C296: FORMULA | D296: =COUNTIF(J7:K10, 4) -> 2 | E296: =COUNTIF(AA7:AA13, 1/0) -> 1 | F296: =COUNTIF(G7:K7,E8:G8) -> 2
C297: EXPECTED VALUE | D297: 2 | E297: 1 | F297: 2
B300: Covar | C300: FORMULA
C301: EXPECTED VALUE
B304: Createobject | C304: FORMULA | D304: WILL_NEVER_IMPLEMENT
C305: EXPECTED VALUE | D305: WILL_NEVER_IMPLEMENT
B308: Critbinom | C308: FORMULA
C309: EXPECTED VALUE
B312: Customrepeat | C312: FORMULA
C313: EXPECTED VALUE
B316: Customundo | C316: FORMULA | D316: WILL_NEVER_IMPLEMENT
C317: EXPECTED VALUE | D317: WILL_NEVER_IMPLEMENT
B320: Date | C320: FORMULA | D320: =DATE(1900, 1, 1) -> 1 | E320: =DATE(1900, 1, 32) -> 32 | F320: =DATE(1900, 222, 1) -> 6727 | G320: =DATE(2007, 1, 1) -> 39083 | H320: =DATE(1900, 2, 29) -> 60 | I320: =DATE(1900, 1, 22222) -> 22222 | J320: =DATE(B8,B9,C10) -> 398 | K320: =DATE(C8,C9,C10) -> 1 | L320: =DATE(E8,E9,E10) -> 
C321: EXPECTED VALUE | D321: 1 | E321: 32 | F321: 6727 | G321: 39083 | H321: 60 | I321: 22222 | J321: 398 | K321: 1
B324: Datedif | C324: FORMULA
C325: EXPECTED VALUE
B328: Datestring | C328: FORMULA
C329: EXPECTED VALUE
B332: Datevalue | C332: FORMULA
C333: EXPECTED VALUE
B336: Daverage | C336: FORMULA
C337: EXPECTED VALUE
B340: Day | C340: FORMULA | D340: =DAY(C20) -> 25 | E340: =DAY(1) -> 1 | F340: =DAY(0) -> 0 | G340: =DAY(C16) ->  | H340: =DAY(#DIV/0!) -> 
C341: EXPECTED VALUE | D341: 25 | E341: 1 | F341: 0
B344: Days360 | C344: FORMULA | D344: =DAYS360(B10,C10) -> -526 | E344: =DAYS360(DATE(1972,2,16), DATE(2012,2,16)) -> 14400 | F344: =DAYS360(DATE(2008,1,16), DATE(2008,5,16)) -> 120
C345: EXPECTED VALUE | D345: -526 | E345: 14400 | F345: 120
B348: Db | C348: FORMULA | D348: WILL_NEVER_IMPLEMENT
C349: EXPECTED VALUE | D349: WILL_NEVER_IMPLEMENT
B352: Dbcs | C352: FORMULA | D352: WILL_NEVER_IMPLEMENT
C353: EXPECTED VALUE | D353: WILL_NEVER_IMPLEMENT
B356: Dcount | C356: FORMULA
C357: EXPECTED VALUE
B360: Dcounta | C360: FORMULA
C361: EXPECTED VALUE
B364: Ddb | C364: FORMULA
C365: EXPECTED VALUE
B368: Degrees | C368: FORMULA | D368: =DEGREES(B7) -> 0 | E368: =DEGREES(B8) -> 57.29577951 | F368: =DEGREES(B13) -> -30595.94626 | G368: =DEGREES(B16) -> 57.29577951 | H368: =DEGREES(D7) -> 0 | I368: =DEGREES(E7) ->  | J368: =DEGREES("1") -> 57.29577951 | K368: =DEGREES(E15) -> 57.29577951 | L368: =DEGREES(F11) -> 0 | M368: =DEGREES(K8:N8) -> 171.8873385 | N368: =DEGREES(L366:L369) -> 0 | O368: =DEGREES(N8:O9) -> 
C369: EXPECTED VALUE | D369: 0 | E369: 57.29577951 | F369: -30595.94626 | G369: 57.29577951 | H369: 0 | J369: 57.29577951 | K369: 57.29577951 | L369: 0 | M369: 171.8873385 | N369: 0
B372: Deletebar | C372: FORMULA | D372: WILL_NEVER_IMPLEMENT
C373: EXPECTED VALUE | D373: WILL_NEVER_IMPLEMENT
B376: Deletecommand | C376: FORMULA | D376: WILL_NEVER_IMPLEMENT
C377: EXPECTED VALUE | D377: WILL_NEVER_IMPLEMENT
B380: Deletemenu | C380: FORMULA | D380: WILL_NEVER_IMPLEMENT
C381: EXPECTED VALUE | D381: WILL_NEVER_IMPLEMENT
B384: Deletetoolbar | C384: FORMULA | D384: WILL_NEVER_IMPLEMENT
C385: EXPECTED VALUE | D385: WILL_NEVER_IMPLEMENT
B388: Deref | C388: FORMULA
C389: EXPECTED VALUE
B392: Devsq | C392: FORMULA | D392: =DEVSQ(B7:B9) -> 2 | E392: =DEVSQ(B7:B9,C7:C9,B15:B17) -> 5.837134 | F392: =DEVSQ(B13:D14) -> 7.497307125e+11 | G392: =DEVSQ(D7:D9,C9) -> 0 | H392: =DEVSQ(E15:E17) ->  | I392: =DEVSQ("1","2",2) -> 0.6666666667 | J392: =DEVSQ(F10,I7) -> 4.49997
... 557 more rows

Sheet FinanceLibTests
O1: NPV | P1: r
A2: f | B2: r | C2: n | D2: y | E2: p | F2: t | H2: f | I2: p | J2: y | K2: n | O2: =NPV(P2,R2:U2) -> 162.500000000000000 | P2: 1.000000000000000 | Q2: v[] | R2: 100 | S2: 200 | T2: 300 | U2: 400
B3: 1 | C3: 10 | D3: 100 | E3: 10000 | F3: 0 | H3: =FV(B3,C3,D3,E3,F3) -> -10342300.000000000000000 | O3: =NPV(P3,R3:U3) -> 347.992326041483000 | P3: 2.500000000000000 | Q3: v[] | R3: 1000 | S3: 666.66666 | T3: 333.33 | U3: 12.2768416
B4: 1 | C4: 10 | D4: 100 | E4: 10000 | F4: 1 | H4: =FV(B4,C4,D4,E4,F4) -> -10444600.000000000000000 | O4: =NPV(P4,R4:U4) -> 74.374243337706100 | P4: 12.333330000000000 | Q4: v[] | R4: 1000 | S4: 0 | T4: -900 | U4: -7777.5765
B5: 2 | C5: 12 | D5: 120 | E5: 12000 | F5: 0 | H5: -6409178400.000000000000000 | O5: =NPV(P5,R5:X5) -> 11342283.423312400000000 | P5: 0.050000000000000 | Q5: v[] | R5: 200000 | S5: 300000.55 | T5: 400000 | U5: 1000000 | V5: 6000000 | W5: 7000000 | X5: -300000
B6: 2 | C6: 12 | D6: 120 | E6: 12000 | F6: 1 | H6: -6472951200.000000000000000
B7: =2/3 -> 0.6666666667 | C7: 23 | D7: 133.33 | E7: 34307 | F7: 0 | H7: -4369465978.793720000000000
B8: =2/3 -> 0.6666666667 | C8: 23 | D8: 133.33 | E8: 34307 | F8: 1 | H8: -4386348826.019340000000000
B9: 0 | C9: 1 | D9: 100 | E9: 2300 | F9: 0 | H9: -2400.000000000000000
B10: 0 | C10: 1 | D10: 100 | E10: 2300 | F10: 1 | H10: -2400.000000000000000
B11: 0 | C11: 12 | D11: 120 | E11: 12000 | F11: 0 | H11: -13440.000000000000000
B12: 0 | C12: 12 | D12: 120 | E12: 12000 | F12: 1 | H12: -13440.000000000000000
B13: 2.3333 | C13: 4 | D13: 334.5 | E13: 14323.45 | F13: 0 | H13: -1785811.026878040000000
B14: 2.3333 | C14: 4 | D14: 334.5 | E14: 14323.45 | F14: 1 | H14: -1826771.171347260000000
A15: 10000 | B15: 1 | C15: 10 | D15: 100 | F15: 0 | I15: =PV(B15,C15,D15,A15,F15) -> -109.667968750000000
A16: 10000 | B16: 1 | C16: 10 | D16: 100 | F16: 1 | I16: =PV(B16,C16,D16,A16,F16) -> -209.570312500000000
A17: 333891.23 | B17: 2.95 | C17: 13 | D17: 13000 | F17: 0 | I17: =PV(B17,C17,D17,A17,F17) -> -4406.785442944960000
A18: 333891.23 | B18: 2.95 | C18: 13 | D18: 13000 | F18: 1 | I18: =PV(B18,C18,D18,A18,F18) -> -17406.785214815600000
B19: 2.95 | C19: 13 | D19: 13000 | E19: -4406.785442944960000 | F19: 0 | H19: =FV(B19,C19,D19,E19,F19) -> 333891.230010986000000
B20: 2.95 | C20: 13 | D20: 13000 | E20: -17406.785214815600000 | F20: 1 | H20: =FV(B20,C20,D20,E20,F20) -> 333891.230102539000000
A21: 10000 | B21: 1 | C21: 10 | E21: -109.6679688 | F21: 0 | J21: =PMT(B21,C21,E21,A21,F21) -> 100.000000000000000
A22: 10000 | B22: 1 | C22: 10 | E22: -209.5703125 | F22: 1 | J22: =PMT(B22,C22,E22,A22,F22) -> 100.000000000000000
A23: 10000 | B23: 1 | D23: 100 | E23: -109.6679688 | F23: 0 | K23: =NPER(B23,D23,E23,A23,F23) -> 10.000000000000000
A24: 10000 | B24: 1 | D24: 100 | E24: -209.5703125 | F24: 1
F25: 0
F26: 1
F27: 0
F28: 1
F29: 0
F30: 1
F31: 0
F32: 1
F33: 0
F34: 1

Sheet StatsLibTests
B1: 1.00000000000 | C1: 1.00000000000 | D1: 0.00000000000 | E1: 1.00000000000 | F1: 123.12000000000 | G1: =-1*B1 -> -1.00000000000
B2: 2.00000000000 | C2: 1.00000000000 | D2: 0.00000000000 | E2: 2.00000000000 | F2: 33.33330000000 | G2: =-1*B2 -> -2.00000000000
B3: 3.00000000000 | C3: 1.00000000000 | D3: 0.00000000000 | E3: 1.00000000000 | F3: =2/3 -> 0.66666666667 | G3: -3.00000000000
B4: 4.00000000000 | C4: 1.00000000000 | D4: 0.00000000000 | E4: 2.00000000000 | F4: 5.37828000000 | G4: -4.00000000000
B5: 5.00000000000 | C5: 1.00000000000 | D5: 0.00000000000 | E5: 1.00000000000 | F5: 0.99900000000 | G5: -5.00000000000
B6: 6.00000000000 | C6: 1.00000000000 | D6: 0.00000000000 | E6: 2.00000000000 | G6: -6.00000000000
B7: 7.00000000000 | C7: 1.00000000000 | D7: 0.00000000000 | E7: 1.00000000000 | G7: -7.00000000000
B8: 8.00000000000 | C8: 1.00000000000 | D8: 0.00000000000 | E8: 2.00000000000 | G8: -8.00000000000
B9: 9.00000000000 | C9: 1.00000000000 | D9: 0.00000000000 | E9: 1.00000000000 | G9: -9.00000000000
B10: 10.00000000000 | C10: 1.00000000000 | D10: 0.00000000000 | E10: 2.00000000000 | G10: -10.00000000000
A12: avedev | B12: =AVEDEV(B1:B10) -> 2.50000000000 | C12: 0.00000000000 | D12: 0.00000000000 | E12: 0.50000000000 | F12: 36.42176053333 | G12: 2.50000000000
A13: stdev | B13: =STDEV(B1:B10) -> 3.02765035410 | C13: 0.00000000000 | D13: 0.00000000000 | E13: 0.52704627669 | F13: 52.33006233652 | G13: 3.02765035410
A14: devsq | B14: =DEVSQ(B1:B10) -> 82.50000000000 | C14: =DEVSQ(C1:C10) -> 0.00000000000 | D14: =DEVSQ(D1:D10) -> 0.00000000000 | E14: =DEVSQ(E1:E10) -> 2.50000000000 | F14: =DEVSQ(F1:F5) -> 10953.74169657670 | G14: =DEVSQ(G1:G10) -> 82.50000000000
A15: large | B15: =LARGE(B1:B10,3) -> 8.00000000000 | C15: 1.00000000000 | D15: 0.00000000000 | E15: 2.00000000000 | F15: 5.37828000000 | G15: -3.00000000000
A16: small | B16: =SMALL(B1:B10,3) -> 3.00000000000 | C16: 1.00000000000 | D16: 0.00000000000 | E16: 1.00000000000 | F16: 5.37828000000 | G16: -8.00000000000
A17: median | B17: =MEDIAN(B1:B10) -> 5.50000000000 | C17: 1.00000000000 | D17: 0.00000000000 | E17: 1.50000000000 | F17: 5.37828000000 | G17: -5.50000000000 | H17: =MEDIAN(B1:B9) -> 5.00000000000 | I17: =MEDIAN(G2:G10) -> -6.00000000000
A18: mode | B18: =MODE(B1:B10) ->  | C18: 1.00000000000 | D18: 0.00000000000 | E18: 1.00000000000 | H18: =MODE(B1:D4,D5) -> 1.00000000000
A19: var | B19: =VAR(B1:B10) -> 9.16666666667 | C19: 0.00000000000 | D19: 0.00000000000 | E19: 0.27777777778 | F19: 2738.43542414417 | G19: 9.16666666667

Sheet misc
A1: string | B1: ="1" -> 1 | C1: 1 | D1: TRUE | E1: =F1 -> 0
A2: ="TRUE" -> TRUE | B2: ="2.3" -> 2.3 | C2: 123.23 | D2: FALSE | E2: =SUM(1,2) -> 3 | F2: 1
A3: ="FALSE" -> FALSE | B3: =B2 -> 2.3 | C3: -12 | D3: =D1 -> TRUE
C5: 12
E6: =CONCATENATE(E2,"1") -> 31
A8: =LARGE(C4:C7,2) ->  | E8: =F1 -> 0
E10: =MAX(E8,-1) -> 0
A12: ="TRUE" -> TRUE
A13: =AVERAGEA("TRUE",1) -> 
A14: =AVERAGEA(A12,2) -> 1
A16: abc | B16: =C16 -> 0
A18: =AVERAGEA("1",1,A16,B16) -> 0.5
